bitfinex/quotes_ETHUSD_20230118
["timestamp","ask_amount","ask_price","bid_price","bid_amount"]
[1674059812996,14.85023128,1510.5,1510.2,0.19066706]
[1674059813315,14.85023128,1510.5,1509.9,0.19066706]
[1674059813316,19.8636,1510.3,1509.9,0.19066706]
[1674059813519,19.8636,1510.3,1509.9,6.706e-05]
[1674059813520,2.5997,1510.2,1509.9,6.706e-05]
[1674059813768,13.24414,1510.1,1509.9,6.706e-05]
[1674059813980,13.24414,1510.1,1510.0,14.0]
[1674059813981,0.066,1510.1,1510.0,14.0]
[1674059814205,6.68768,1510.2,1510.0,14.066]
[1674059814425,0.066,1510.2,1510.0,14.066]
[1674059814735,6.68683,1510.4,1510.0,0.066]
[1674059815049,6.68683,1510.4,1510.3,14.0]
[1674059815050,0.066,1510.4,1510.3,14.0]
[1674059815265,0.066,1510.5,1510.3,25.066]
[1674059815520,1.0,1510.6,1510.3,25.066]
[1674059815722,0.066,1510.8,1510.5,22.0]
[1674059815876,1.0,1511.0,1510.7,14.0]
[1674059816091,0.066,1511.1,1510.9,14.0]
[1674059816335,6.61772,1511.1,1510.9,14.066]
[1674059816662,0.066,1511.1,1511.0,11.23]
[1674059816870,0.066,1511.3,1511.1,3.906]
[1674059817089,6.61587,1511.6,1511.2,16.332]
[1674059817090,6.68187,1511.6,1511.2,16.332]
[1674059817242,6.68187,1511.6,1511.5,14.0]
[1674059817451,6.61405,1512.0,1511.5,17.296]
[1674059817712,0.064,1511.6,1511.5,3.066]
[1674059818027,1.066,1512.0,1511.6,0.23]
[1674059818253,6.61392,1512.0,1511.7,14.0]
[1674059818556,6.67992,1512.0,1511.9,14.0]
[1674059818766,0.066,1512.0,1511.9,14.296]
[1674059818979,6.67934,1512.1,1511.9,14.296]
[1674059819189,0.066,1512.1,1512.0,3.23]
[1674059819497,0.01,1512.2,1512.0,13.33]
[1674059819712,0.054,1512.2,1512.1,14.0]
[1674059820027,0.054,1512.2,1512.1,18.26977228]
[1674059820204,6.67828,1512.4,1512.1,1.26977228]
[1674059820412,6.67828,1512.4,1512.2,0.23]
[1674059820950,6.67828,1512.4,1512.2,0.06421092]
[1674059820951,1.2,1512.3,1512.2,0.06421092]
[1674059821290,0.0444057,1512.1,1511.9,0.03977228]
[1674059821444,21.04135,1512.0,1511.3,14.03977228]
[1674059821658,24.60735,1512.0,1511.6,1.0]
[1674059821865,21.10735,1512.0,1511.3,14.03977228]
[1674059822489,21.10735,1512.0,1511.3,0.03977228]
[1674059822740,1.0,1511.9,1511.6,14.0]
[1674059823078,13.72546,1511.8,1511.6,0.03977228]
[1674059823227,13.79146,1511.8,1511.4,14.03977228]
[1674059823649,13.79146,1511.8,1511.4,0.03977228]
[1674059823906,13.79146,1511.8,1511.1,14.0]
[1674059824131,13.79146,1511.8,1511.1,14.03977228]
[1674059824385,13.79146,1511.8,1511.6,14.0]
[1674059824386,1.0,1511.7,1511.6,14.0]
[1674059824646,6.61506,1511.7,1511.6,0.03977228]
[1674059824967,6.61506,1511.7,1511.4,15.0]
[1674059824968,6.68106,1511.7,1511.4,15.0]
[1674059825117,6.68106,1511.7,1511.4,14.03977228]
[1674059825326,6.68106,1511.7,1511.6,14.0]
[1674059825596,1.22700206,1511.8,1511.6,32.60277228]
[1674059825747,0.0444057,1512.1,1511.7,1.23]
[1674059825956,0.0444057,1512.1,1512.0,22.0]
[1674059826327,0.0444057,1512.1,1512.0,24.36977228]
[1674059826543,0.1081719,1512.5,1512.0,31.74760988]
[1674059826858,0.05627294,1512.6,1512.5,6.84]
[1674059827067,0.05627294,1512.6,1512.5,6.87977228]
[1674059827382,0.066,1512.9,1512.5,4.80760988]
[1674059827597,1.07463757,1513.2,1512.8,27.999]
[1674059827746,1.07437181,1513.4,1513.1,22.0]
[1674059828112,0.04262306,1513.4,1513.3,16.093]
[1674059828266,0.04262306,1513.4,1513.3,16.13277228]
[1674059828481,0.74662306,1513.4,1513.3,0.03977228]
[1674059828736,0.74662306,1513.4,1513.1,14.03977228]
[1674059828895,6.60807,1513.3,1513.1,14.03977228]
[1674059829106,13.77784,1513.3,1513.1,14.03977228]
[1674059829351,13.77784,1513.3,1512.8,14.0]
[1674059829591,13.77784,1513.3,1513.1,0.052]
[1674059829898,0.066,1513.3,1513.2,14.0]
[1674059830087,0.04262306,1513.4,1513.2,16.162]
[1674059830300,0.04262306,1513.4,1513.3,8.0]
[1674059830493,0.04262306,1513.4,1513.3,11.066]
[1674059830703,0.04262306,1513.4,1513.3,3.066]
[1674059830918,6.65051306,1513.4,1513.2,14.066]
[1674059831104,7.21221306,1513.4,1513.2,0.066]
[1674059831314,7.21221306,1513.4,1513.0,15.0]
[1674059831315,0.73316676,1513.1,1513.0,1.066]
[1674059831578,7.34210676,1513.1,1512.8,14.066]
[1674059831747,19.82946,1512.9,1512.8,0.066]
[1674059831959,19.82946,1512.9,1512.7,0.066]
[1674059831960,22.49126,1512.9,1512.7,0.066]
[1674059832174,22.49126,1512.9,1512.3,14.0]
[1674059832175,0.04391035,1512.6,1512.3,0.066]
[1674059832419,13.224,1512.4,1511.8,14.0]
[1674059832574,6.61301,1512.2,1511.8,14.066]
[1674059832785,6.67901,1512.2,1511.8,14.066]
[1674059833036,6.67901,1512.2,1511.9,1.0]
[1674059833219,6.67901,1512.2,1511.8,14.066]
[1674059833220,13.29202,1512.2,1511.8,14.066]
[1674059833429,13.29202,1512.2,1511.8,0.066]
[1674059833430,19.84125,1512.0,1511.8,0.066]
[1674059833638,1.2002,1511.9,1511.6,0.066]
[1674059833885,19.84389,1511.8,1511.4,14.066]
[1674059834103,13.231,1511.6,1511.5,14.0]
[1674059834320,13.7933,1511.6,1511.5,14.066]
[1674059835102,13.7933,1511.6,1511.5,0.066]
[1674059835344,13.7933,1511.6,1511.2,14.066]
[1674059835345,13.297,1511.6,1511.2,14.066]
[1674059835571,13.7933,1511.6,1511.2,14.066]
[1674059835807,0.4963,1511.5,1511.2,14.066]
[1674059836119,6.68174,1511.6,1511.4,22.0]
[1674059836433,0.066,1511.6,1511.4,22.066]
[1674059836600,0.066,1511.7,1511.5,0.5378376]
[1674059836810,6.67863,1511.8,1511.5,0.002]
[1674059837023,6.67863,1511.8,1511.4,14.064]
[1674059837024,13.23031,1511.7,1511.4,0.066]
[1674059837233,0.4963,1511.6,1511.2,0.066]
[1674059837440,19.84782,1511.5,1511.1,14.066]
[1674059837678,0.066,1511.5,1511.3,14.0]
[1674059837902,6.68189,1511.6,1511.3,14.066]
[1674059838479,6.68189,1511.6,1511.5,14.0]
[1674059838794,6.68189,1511.6,1511.5,14.066]
[1674059839233,6.68189,1511.6,1511.5,0.066]
[1674059839487,7.17819,1511.6,1511.4,14.0]
[1674059839670,7.17819,1511.6,1511.4,0.05719889]
[1674059839671,1.2003,1511.5,1511.4,0.05719889]
[1674059839863,6.61594,1511.5,1511.4,14.0]
[1674059840211,0.066,1511.5,1511.4,22.05719889]
[1674059840534,6.68189,1511.6,1511.4,22.05719889]
[1674059840843,13.29741,1511.6,1511.4,14.05719889]
[1674059841458,6.68152,1511.6,1511.5,8.0]
[1674059841740,0.066,1511.6,1511.5,14.26291878]
[1674059841895,6.61359,1512.1,1511.6,7.84]
[1674059842224,0.066,1512.1,1512.0,22.0]
[1674059842399,0.066,1512.2,1512.0,25.05719889]
[1674059842584,6.61261,1512.3,1512.1,4.0]
[1674059842585,0.066,1512.3,1512.1,4.0]
[1674059842796,6.61209,1512.4,1512.2,22.0]
[1674059843011,6.67809,1512.4,1512.3,17.0]
[1674059843265,13.29018,1512.4,1512.3,17.05719889]
[1674059843988,6.678,1512.4,1512.3,25.05719889]
[1674059844164,6.678,1512.4,1512.3,17.28719889]
[1674059844374,13.29,1512.4,1512.3,14.28719889]
[1674059844620,0.03,1512.4,1512.3,26.71591878]
[1674059844795,0.12242946,1512.6,1512.3,37.99153654]
[1674059845024,0.08916676,1513.1,1512.7,10.746]
[1674059845025,0.02916676,1513.1,1512.7,10.746]
[1674059845256,0.02916676,1513.1,1513.0,28.84]
[1674059845429,0.02916676,1513.1,1513.0,31.96818889]
[1674059845638,0.04262306,1513.4,1513.0,20.45513071]
[1674059845848,0.04262306,1513.4,1513.1,3.0]
[1674059846101,0.04262306,1513.4,1513.3,14.0]
[1674059846310,6.65036306,1513.4,1513.3,3.28719889]
[1674059846520,0.07262306,1513.4,1513.3,11.23]
[1674059846790,6.60652,1513.7,1513.3,4.43891878]
[1674059847057,6.67052,1513.7,1513.3,3.232]
[1674059847247,0.066,1513.7,1513.6,22.0]
[1674059847434,6.60626,1513.8,1513.6,22.05719889]
[1674059847435,0.002,1513.8,1513.6,22.05719889]
[1674059847646,0.012,1513.8,1513.6,22.05719889]
[1674059847835,6.60546,1513.9,1513.6,14.05719889]
[1674059848044,6.67146,1513.9,1513.6,14.05719889]
[1674059848256,6.67146,1513.9,1513.8,14.0]
[1674059848519,6.65099009,1514.1,1513.7,14.84]
[1674059848739,6.65099009,1514.1,1514.0,22.0]
[1674059848740,0.11225009,1514.1,1514.0,22.0]
[1674059848906,0.04625009,1514.1,1514.0,22.066]
[1674059849114,0.04625009,1514.1,1514.0,25.066]
[1674059849332,0.04625009,1514.1,1514.0,34.806]
[1674059849546,9e-08,1514.1,1514.0,39.89788542]
[1674059849780,0.05072824,1514.2,1514.1,7.84]
[1674059849983,0.05072824,1514.2,1514.1,10.906]
[1674059850173,6.66409,1514.7,1514.1,11.76894634]
[1674059850527,6.66809,1514.7,1514.6,22.0]
[1674059850739,6.66809,1514.7,1514.6,22.066]
[1674059850893,0.066,1514.7,1514.6,25.066]
[1674059851098,0.004,1515.1,1514.6,28.972]
[1674059851362,0.06,1515.1,1515.0,22.0]
[1674059851569,8.37362165,1515.5,1515.0,22.066]
[1674059851570,8.37962165,1515.5,1515.0,22.066]
[1674059851891,8.37962165,1515.5,1515.4,59.346]
[1674059851892,0.012,1515.5,1515.4,59.346]
[1674059852081,0.806596,1515.8,1515.4,62.5452]
[1674059852291,0.4840622,1515.8,1515.7,14.0]
[1674059852503,0.3550422,1515.8,1515.7,22.066]
[1674059852715,0.3550422,1515.8,1515.7,25.066]
[1674059853104,0.3550422,1515.8,1515.7,25.99409751]
[1674059853325,0.3550422,1515.8,1515.7,37.14920628]
[1674059853326,0.2050422,1515.8,1515.7,37.14920628]
[1674059853536,0.02830691,1516.2,1515.7,44.92320628]
[1674059853784,0.02830691,1516.2,1516.1,25.906]
[1674059853993,0.05821481,1516.3,1516.1,33.336]
[1674059854354,7.19857,1516.7,1516.2,8.0]
[1674059854505,7.19857,1516.7,1516.6,14.0]
[1674059854506,0.61912,1516.7,1516.6,14.0]
[1674059854835,1.30912,1516.7,1516.6,0.01736783]
[1674059855044,1.30912,1516.7,1516.1,26.2759728]
[1674059855045,8.39698,1516.7,1516.1,24.504]
[1674059855359,8.39698,1516.7,1515.8,0.415]
[1674059855360,13.18868,1516.5,1515.8,0.06]
[1674059855569,6.59765,1515.7,1515.5,8.0]
[1674059855738,0.066,1515.7,1515.5,0.869]
[1674059855951,6.59794,1515.7,1515.2,13.19]
[1674059856196,6.66394,1515.7,1515.2,21.256]
[1674059856414,6.66394,1515.7,1515.3,1.0]
[1674059856623,1.13164173,1515.6,1515.3,1.0]
[1674059856776,1.13164173,1515.6,1515.1,11.27]
[1674059856777,13.19696,1515.5,1515.1,11.336]
[1674059856987,0.495,1515.4,1515.1,21.59797567]
[1674059857212,13.1987,1515.3,1515.1,0.066]
[1674059857422,13.1987,1515.3,1515.2,18.26197567]
[1674059857423,0.066,1515.3,1515.2,18.26197567]
[1674059857673,0.066,1515.5,1515.2,20.15417324]
[1674059857989,6.59869,1515.5,1515.4,10.26197567]
[1674059858140,7.15969,1515.5,1515.4,10.32797567]
[1674059858350,7.15969,1515.5,1515.0,10.26197567]
[1674059858617,7.15969,1515.5,1515.0,0.066]
[1674059858618,19.34938,1515.5,1515.0,0.066]
[1674059858808,19.34938,1515.5,1514.8,21.53197567]
[1674059858809,16.48612173,1515.5,1515.2,10.26197567]
[1674059859035,14.75838,1515.5,1515.2,10.32797567]
[1674059859245,14.75838,1515.5,1515.3,10.26197567]
[1674059859461,14.75838,1515.5,1515.3,0.066]
[1674059859781,14.75838,1515.5,1515.0,10.26197567]
[1674059859782,13.26338,1515.5,1515.4,10.26197567]
[1674059859935,13.26338,1515.5,1515.4,10.32797567]
[1674059860140,13.75838,1515.5,1515.0,11.26197567]
[1674059860352,13.75838,1515.5,1515.0,11.32797567]
[1674059860353,14.39512173,1515.5,1515.0,11.32797567]
[1674059860619,13.75838,1515.5,1515.0,10.32797567]
[1674059860795,1.0,1515.4,1515.0,10.32797567]
[1674059861032,20.29332,1515.3,1515.0,10.32797567]
[1674059861191,20.35932,1515.3,1515.0,10.32797567]
[1674059861402,20.35732,1515.3,1515.0,10.32797567]
[1674059861643,20.35932,1515.3,1515.0,10.32797567]
[1674059861855,19.86432,1515.3,1515.0,10.32797567]
[1674059862241,19.80066,1515.1,1515.0,10.32797567]
[1674059862452,19.86666,1515.1,1515.0,10.32797567]
[1674059862662,20.36176,1515.1,1515.0,10.32797567]
[1674059862928,3.00702895,1514.9,1514.6,8.0]
[1674059863153,20.29979,1514.8,1514.6,0.066]
[1674059863297,20.30179,1514.8,1514.6,0.064]
[1674059863667,19.80747,1514.6,1514.3,8.066]
[1674059863836,19.80747,1514.6,1514.3,0.066]
[1674059863837,20.36877,1514.6,1514.3,0.066]
[1674059864044,20.36877,1514.6,1513.9,1.0]
[1674059864294,20.36877,1514.6,1513.9,0.45]
[1674059864548,19.87347,1514.6,1513.8,3.51852895]
[1674059864678,19.87347,1514.6,1514.0,1.0]
[1674059865580,19.87347,1514.6,1514.0,7.94155567]
[1674059865754,19.87347,1514.6,1514.0,8.00755567]
[1674059865963,0.066,1514.6,1514.5,6.94155567]
[1674059866156,0.066,1514.8,1514.5,15.70171124]
[1674059866365,9.67448895,1514.9,1514.7,14.94155567]
[1674059866578,9.67448895,1514.9,1514.8,0.23]
[1674059867043,3.07302895,1514.9,1514.8,0.23]
[1674059867358,3.00702895,1514.9,1514.8,3.23]
[1674059867899,9.60811895,1514.9,1514.8,3.23]
[1674059868061,9.67411895,1514.9,1514.8,3.23]
[1674059868677,9.67411895,1514.9,1514.8,0.23]
[1674059868991,10.16931895,1514.9,1514.7,6.94155567]
[1674059869200,9.67411895,1514.9,1514.8,6.94155567]
[1674059869411,16.27520895,1514.9,1514.8,7.00755567]
[1674059869829,16.77040895,1514.9,1514.8,7.00755567]
[1674059870040,16.27520895,1514.9,1514.8,7.00755567]
[1674059870480,9.67411895,1514.9,1514.8,7.00755567]
[1674059870687,9.67411895,1514.9,1514.8,10.00755567]
[1674059870895,16.27520895,1514.9,1514.8,0.066]
[1674059871143,16.27520895,1514.9,1514.5,3.0]
[1674059871740,19.80615,1514.7,1514.4,7.00755567]
[1674059871987,0.4953,1514.6,1514.4,7.00755567]
[1674059872300,13.20566,1514.5,1514.4,7.00755567]
[1674059872617,13.27166,1514.5,1514.4,7.00755567]
[1674059872843,6.66883,1514.5,1514.4,7.00755567]
[1674059872985,0.4952,1514.8,1514.5,1.62225231]
[1674059873351,0.4952,1514.8,1514.7,6.94155567]
[1674059873352,6.60189,1514.8,1514.7,6.94155567]
[1674059873516,6.60189,1514.8,1514.7,7.23755567]
[1674059873517,19.87131,1514.8,1514.7,7.23755567]
[1674059873721,6.66753,1514.8,1514.7,15.23755567]
[1674059874051,6.66753,1514.8,1514.7,0.296]
[1674059874404,14.76426,1514.8,1514.5,0.62225231]
[1674059874726,0.4952,1514.7,1514.5,7.56380798]
[1674059874930,0.4952,1514.7,1514.5,7.62980798]
[1674059874931,6.6024,1514.6,1514.5,7.62980798]
[1674059875101,13.2708,1514.6,1514.5,0.68825231]
[1674059875459,13.2708,1514.6,1514.5,0.62225231]
[1674059875803,13.2708,1514.6,1514.5,3.62225231]
[1674059875980,13.7661,1514.6,1514.5,0.62225231]
[1674059876524,13.7661,1514.6,1514.1,7.00755567]
[1674059876525,14.7661,1514.6,1514.1,7.00755567]
[1674059876694,1.4953,1514.5,1514.1,7.00755567]
[1674059876909,19.81008,1514.4,1514.1,8.76675557]
[1674059877263,13.27272,1514.4,1514.3,6.94155567]
[1674059877413,13.27272,1514.4,1514.3,7.00755567]
[1674059877622,13.27272,1514.4,1514.3,0.066]
[1674059877891,13.27272,1514.4,1514.1,7.00755567]
[1674059878115,13.27272,1514.4,1514.3,6.94155567]
[1674059878273,13.27272,1514.4,1514.3,7.00755567]
[1674059878464,13.27272,1514.4,1514.3,7.23755567]
[1674059878676,13.27272,1514.4,1514.3,0.296]
[1674059878884,13.27272,1514.4,1514.3,6.94155567]
[1674059879094,6.66927,1514.4,1514.3,7.00755567]
[1674059879357,0.066,1514.4,1514.3,9.50831124]
[1674059879610,6.66889,1514.5,1514.3,8.50831124]
[1674059879746,6.60327,1514.4,1514.3,10.00755567]
[1674059879952,13.27254,1514.4,1514.3,10.00755567]
[1674059880216,13.27254,1514.4,1514.3,10.23755567]
[1674059880388,13.27254,1514.4,1514.3,7.23755567]
[1674059880806,13.27254,1514.4,1514.3,0.296]
[1674059881023,13.27254,1514.4,1514.3,0.23]
[1674059881232,7.16457,1514.4,1514.1,10.00755567]
[1674059881486,19.81242,1514.2,1514.1,7.00755567]
[1674059881652,19.87842,1514.2,1514.1,7.00755567]
[1674059881862,6.67014,1514.2,1514.1,7.00755567]
[1674059882062,0.066,1514.2,1514.1,8.00755567]
[1674059882267,6.66973,1514.3,1514.1,8.00755567]
[1674059882479,0.066,1514.3,1514.2,11.0]
[1674059882730,0.066,1514.4,1514.3,1.0]
[1674059882921,6.66901,1514.5,1514.3,10.94155567]
[1674059883136,0.066,1514.5,1514.4,12.0]
[1674059883320,0.066,1514.6,1514.4,15.066]
[1674059883532,6.60237,1514.7,1514.4,15.066]
[1674059883533,0.066,1514.7,1514.5,6.94155567]
[1674059883796,0.066,1514.7,1514.6,3.0]
[1674059883797,6.60199,1514.7,1514.6,3.0]
[1674059884111,13.26998,1514.7,1514.5,0.066]
[1674059884323,13.90672173,1514.7,1514.3,1.066]
[1674059884478,1.4953,1514.6,1514.1,7.00755567]
[1674059884682,26.4122,1514.5,1514.1,7.00755567]
[1674059884942,0.4953,1514.4,1514.1,7.00755567]
[1674059885115,19.81113,1514.3,1514.1,7.00755567]
[1674059885330,19.87713,1514.3,1514.1,7.00755567]
[1674059885539,20.37253,1514.3,1514.1,0.066]
[1674059885806,20.37253,1514.3,1513.8,0.066]
[1674059886001,20.37253,1514.3,1513.7,0.0116888]
[1674059886172,1.0,1514.2,1513.7,0.0116888]
[1674059886385,26.41906,1514.1,1513.7,0.0116888]
[1674059886621,26.48506,1514.1,1513.7,0.0116888]
[1674059886808,0.4955,1514.0,1513.7,0.0116888]
[1674059887001,19.81635,1513.9,1513.7,0.0116888]
[1674059887214,19.88235,1513.9,1513.7,0.0116888]
[1674059887424,1.1995,1513.8,1513.7,8.8e-06]
[1674059887750,1.0,1513.7,1513.2,0.15984709]
[1674059887959,0.4956,1513.6,1513.2,0.15984709]
[1674059888169,1.563,1513.4,1513.0,0.15984709]
[1674059888415,13.21456,1513.5,1513.0,6.94155567]
[1674059888416,6.60928,1513.1,1513.0,6.94155567]
[1674059888579,0.066,1513.1,1513.0,10.00755567]
[1674059888785,6.60859,1513.2,1513.0,10.00755567]
[1674059888786,6.67459,1513.2,1513.0,10.00755567]
[1674059889036,13.28318,1513.2,1513.0,10.00755567]
[1674059889207,6.67459,1513.2,1513.0,18.00755567]
[1674059889432,6.67459,1513.2,1513.0,10.00755567]
[1674059889787,13.28318,1513.2,1513.0,0.066]
[1674059889939,1.569,1513.1,1512.9,0.002]
[1674059890149,2.569,1513.1,1512.7,0.066]
[1674059890360,20.32421,1513.0,1512.6,0.0046455]
[1674059890605,20.39021,1513.0,1512.6,0.0046455]
[1674059891006,1.569,1512.9,1512.6,0.0046455]
[1674059891240,0.4959,1512.8,1512.2,0.066]
[1674059891424,20.83234,1512.7,1512.6,3.0]
[1674059891785,19.89834,1512.7,1512.5,0.066]
[1674059891931,19.89834,1512.7,1512.2,3.0]
[1674059892145,19.89834,1512.7,1512.3,3.0]
[1674059892415,19.89834,1512.7,1512.2,3.066]
[1674059892581,19.89834,1512.7,1512.1,7.00755567]
[1674059892939,0.4959,1512.6,1512.5,6.94155567]
[1674059893147,0.4959,1512.6,1512.5,10.00755567]
[1674059893148,7.10703,1512.6,1512.5,10.00755567]
[1674059893338,6.61053,1512.8,1512.6,1.15889587]
[1674059893672,6.61053,1512.8,1512.7,9.94155567]
[1674059893673,6.67653,1512.8,1512.7,9.94155567]
[1674059893882,6.67653,1512.8,1512.7,13.00755567]
[1674059894251,6.67653,1512.8,1512.7,0.296]
[1674059894473,6.67653,1512.8,1512.7,0.23]
[1674059894710,13.28706,1512.8,1512.7,3.0]
[1674059895043,13.28706,1512.8,1512.6,1.22489587]
[1674059895216,13.78296,1512.8,1512.6,1.15889587]
[1674059895426,13.28706,1512.8,1512.6,1.15889587]
[1674059895653,13.78296,1512.8,1512.6,1.15889587]
[1674059895962,13.78296,1512.8,1512.7,0.23]
[1674059895963,13.28706,1512.8,1512.7,0.23]
[1674059896180,13.28706,1512.8,1512.6,1.15889587]
[1674059896771,6.61122,1512.6,1512.5,0.066]
[1674059897033,6.61122,1512.6,1512.2,3.066]
[1674059897034,19.89966,1512.6,1512.2,3.066]
[1674059897255,19.89966,1512.6,1512.3,0.23]
[1674059897560,19.89966,1512.6,1512.2,3.0]
[1674059897715,19.89966,1512.6,1512.1,5.23245154]
[1674059897923,19.89966,1512.6,1512.4,5.16645154]
[1674059898140,13.28844,1512.6,1512.5,11.0]
[1674059898459,0.066,1512.6,1512.5,11.066]
[1674059898678,0.066,1512.8,1512.5,11.5434]
[1674059898992,13.2853,1513.0,1512.7,13.16645154]
[1674059899217,13.2853,1513.0,1512.8,3.23]
[1674059899430,6.67549,1513.0,1512.9,5.16645154]
[1674059899675,6.67549,1513.0,1512.9,16.46245154]
[1674059899676,0.066,1513.0,1512.9,16.46245154]
[1674059899985,0.066,1513.1,1512.9,16.46245154]
[1674059900145,13.21757,1513.2,1513.0,3.23]
[1674059900146,0.066,1513.2,1513.0,3.23]
[1674059900349,6.6081,1513.3,1513.1,13.16645154]
[1674059900350,6.6741,1513.3,1513.1,13.16645154]
[1674059900612,0.066,1513.3,1513.2,3.23]
[1674059900824,0.066,1513.4,1513.2,3.23]
[1674059901147,6.67329,1513.5,1513.2,3.23]
[1674059901458,13.21543,1513.4,1513.2,3.23]
[1674059901612,13.28143,1513.4,1513.2,0.23]
[1674059901831,15.34613,1513.4,1512.9,3.0]
[1674059902094,18.90063514,1513.4,1512.7,0.066]
[1674059902240,18.90063514,1513.4,1512.6,11.336]
[1674059902241,4.55450514,1513.3,1512.6,11.336]
[1674059902451,20.32228,1513.2,1512.7,5.16645154]
[1674059902661,20.38828,1513.2,1512.7,5.23245154]
[1674059902918,1.0,1513.1,1512.7,5.23245154]
[1674059903128,19.82946,1512.9,1512.7,0.066]
[1674059903339,19.82946,1512.9,1512.5,5.16645154]
[1674059903340,0.4959,1512.8,1512.5,5.23245154]
[1674059903552,20.39126,1512.9,1512.5,5.23245154]
[1674059903711,19.89546,1512.9,1512.5,5.23245154]
[1674059904567,6.67582,1512.9,1512.7,5.16645154]
[1674059904762,6.67582,1512.9,1512.8,8.0]
[1674059904972,6.66763,1513.4,1512.8,8.0]
[1674059904973,6.60763,1513.4,1512.9,1.0]
[1674059905220,6.67363,1513.4,1513.2,13.16645154]
[1674059905408,6.67363,1513.4,1513.2,13.23245154]
[1674059905635,6.67363,1513.4,1513.3,3.0]
[1674059907075,13.2817,1513.4,1513.3,3.0]
[1674059907285,13.2817,1513.4,1513.2,0.066]
[1674059907558,13.2817,1513.4,1513.1,5.23245154]
[1674059907729,13.2817,1513.4,1513.2,3.0]
[1674059908073,13.2817,1513.4,1513.1,0.066]
[1674059908074,14.8507,1513.4,1513.1,0.066]
[1674059908393,21.39453,1513.2,1512.6,5.23245154]
[1674059908561,0.4958,1513.1,1512.6,5.23245154]
[1674059908776,19.8288,1513.0,1512.6,5.23245154]
[1674059908969,19.8948,1513.0,1512.6,5.23245154]
[1674059909180,26.5044,1513.0,1512.6,5.23245154]
[1674059909837,26.5044,1513.0,1512.7,3.0]
[1674059910192,19.83075,1512.8,1512.6,5.23245154]
[1674059910369,19.89675,1512.8,1512.6,5.23245154]
[1674059910579,26.507,1512.8,1512.6,5.23245154]
[1674059910791,26.505,1512.8,1512.6,5.23245154]
[1674059911068,26.507,1512.8,1512.6,5.23245154]
[1674059911274,19.89675,1512.8,1512.6,5.23245154]
[1674059911436,26.507,1512.8,1512.6,5.23245154]
[1674059914050,1.566,1512.7,1512.6,5.23245154]
[1674059914260,8.67259,1512.7,1512.6,0.066]
[1674059914513,8.67259,1512.7,1512.6,5.16645154]
[1674059914514,15.34928,1512.7,1512.6,5.16645154]
[1674059914788,15.34928,1512.7,1512.6,5.23245154]
[1674059915000,16.34928,1512.7,1512.6,5.23245154]
[1674059915362,13.28738,1512.7,1512.6,5.23245154]
[1674059915577,6.67669,1512.7,1512.6,8.23245154]
[1674059915729,0.066,1512.7,1512.6,9.23245154]
[1674059915936,6.67625,1512.8,1512.6,8.23245154]
[1674059916211,6.67625,1512.8,1512.6,3.066]
[1674059916212,13.22138,1512.7,1512.6,3.066]
[1674059916420,13.22138,1512.7,1512.4,0.066]
[1674059916421,13.78328,1512.7,1512.4,0.066]
[1674059916569,13.28738,1512.7,1512.2,3.0]
[1674059916781,13.28738,1512.7,1512.6,5.16645154]
[1674059917152,6.67669,1512.7,1512.6,8.23245154]
[1674059917727,6.67669,1512.7,1512.6,9.23245154]
[1674059917728,0.066,1512.7,1512.6,9.23245154]
[1674059917978,13.28608,1512.9,1512.6,9.23245154]
[1674059918164,0.066,1512.9,1512.8,5.16645154]
[1674059918359,6.67572,1513.0,1512.8,5.23245154]
[1674059918580,6.67572,1513.0,1512.9,3.0]
[1674059918794,6.67572,1513.0,1512.9,11.0]
[1674059919038,0.066,1513.0,1512.9,3.066]
[1674059919256,13.21876,1513.0,1512.9,3.0]
[1674059919411,13.28476,1513.0,1512.9,3.0]
[1674059919622,13.28476,1513.0,1512.8,0.066]
[1674059919623,19.89414,1513.0,1512.8,0.066]
[1674059919838,1.1998,1512.9,1512.6,5.16645154]
[1674059920063,19.83075,1512.8,1512.6,5.23245154]
[1674059920254,1.1999,1512.7,1512.1,0.06]
[1674059920482,4.75229673,1512.7,1512.0,0.066]
[1674059920838,19.83483,1512.5,1511.9,0.17405396]
[1674059921006,1.0,1512.4,1511.9,0.17405396]
[1674059921201,20.33393,1512.3,1511.9,0.17405396]
[1674059921412,20.39993,1512.3,1511.9,5.3405055]
[1674059921652,20.39993,1512.3,1511.9,0.24005396]
[1674059921863,20.39993,1512.3,1511.8,0.1642156]
[1674059922079,1.0,1512.2,1511.8,0.1642156]
[1674059922419,20.3363,1512.1,1511.8,1.56e-05]
[1674059922565,1.0,1512.0,1511.8,1.56e-05]
[1674059922770,13.22838,1511.9,1511.8,1.56e-05]
[1674059923033,13.29438,1511.9,1511.8,1.56e-05]
[1674059923404,15.35658,1511.9,1511.8,1.56e-05]
[1674059923888,18.91108514,1511.9,1511.8,1.56e-05]
[1674059924066,15.35658,1511.9,1511.8,1.56e-05]
[1674059924256,16.35658,1511.9,1511.8,1.56e-05]
[1674059924890,14.29438,1511.9,1511.8,1.56e-05]
[1674059925109,13.29438,1511.9,1511.8,1.56e-05]
[1674059925311,14.31063435,1511.9,1511.5,5.16645154]
[1674059925523,1.0,1511.8,1511.5,5.23245154]
[1674059925768,7.69644435,1511.9,1511.7,5.16645154]
[1674059925980,7.69644435,1511.9,1511.7,5.23245154]
[1674059926296,7.69644435,1511.9,1511.8,5.16645154]
[1674059926508,1.08225435,1511.9,1511.8,8.23245154]